bitfinex/quotes_ETHUSD_20220309
["timestamp","ask_amount","ask_price","bid_price","bid_amount"]
[1646821858563,0.02060797,2752.9,2752.6,0.029168]
[1646821858765,0.01795616,2752.9,2752.7,1.49779201]
[1646821858965,0.02060797,2752.9,2752.7,1.49779201]
[1646821859967,0.01795616,2752.9,2752.7,1.49779201]
[1646821860167,0.02060807,2752.9,2752.7,1.49779201]
[1646821860767,0.02060807,2752.9,2752.8,1.49779201]
[1646821861169,0.02060807,2752.9,2752.5,0.029168]
[1646821861170,0.01795616,2752.9,2752.6,1.49779201]
[1646821861369,0.02060807,2752.9,2752.7,1.49779201]
[1646821861611,0.02060807,2752.9,2752.5,0.029168]
[1646821861810,0.02060807,2752.9,2752.6,1.49774853]
[1646821862211,0.01795616,2752.9,2752.6,1.49774853]
[1646821862610,0.02060802,2752.9,2752.6,1.49774853]
[1646821863514,0.01795616,2752.9,2752.6,1.49774853]
[1646821863714,0.02060802,2752.9,2752.6,1.49774853]
[1646821863915,0.02060802,2752.9,2752.3,0.029168]
[1646821864115,1.20909028,2752.9,2752.3,0.029168]
[1646821864421,3.0,2752.5,2752.2,1.1608]
[1646821864715,4.3,2752.5,2752.3,1.49779303]
[1646821864919,4.3,2752.5,2752.1,0.029168]
[1646821865114,4.3,2752.5,2752.2,1.49778899]
[1646821865562,4.3,2752.5,2752.3,1.49778899]
[1646821865762,4.3,2752.5,2752.4,1.49778899]
[1646821865763,3.0,2752.5,2752.4,1.49778899]
[1646821865961,0.01795616,2752.9,2752.4,2.44753338]
[1646821866165,0.01795616,2752.9,2752.7,0.029168]
[1646821866166,0.02060763,2752.9,2752.7,0.029168]
[1646821866366,0.02060763,2752.9,2752.6,0.029168]
[1646821866565,0.02060763,2752.9,2752.7,1.49760491]
[1646821866766,0.00143049,2752.7,2752.6,0.029168]
[1646821867166,0.00143049,2752.7,2752.6,1.52676171]
[1646821868167,0.00143049,2752.7,2752.6,1.49759371]
[1646821868567,0.00143049,2752.7,2752.5,1.49759371]
[1646821869210,0.00143049,2752.7,2752.6,0.029168]
[1646821869410,0.00143049,2752.7,2752.6,1.52676171]
[1646821870819,0.00143049,2752.7,2752.6,1.49759371]
[1646821871216,0.00143049,2752.7,2752.5,1.49759371]
[1646821871417,0.00143049,2752.7,2752.6,1.49759371]
[1646821871616,0.00143049,2752.7,2752.5,1.49759371]
[1646821871818,0.00143049,2752.7,2752.5,1.496103]
[1646821874560,0.00143049,2752.7,2752.5,1.525271]
[1646821874760,0.00143049,2752.7,2752.5,0.029168]
[1646821875160,0.00143049,2752.7,2752.4,0.94974439]
[1646821875366,0.00143049,2752.7,2752.4,0.029168]
[1646821875866,0.00143049,2752.7,2752.2,0.029168]
[1646821876067,3.0,2752.6,2752.1,1.2428]
[1646821876266,1.3,2752.6,2752.1,1.2428]
[1646821876467,3.0,2752.5,2752.1,1.2428]
[1646821876710,4.0,2752.5,2752.1,1.2428]
[1646821876912,1.0,2752.5,2751.8,0.029168]
[1646821877310,3.64318226,2752.6,2751.7,0.029168]
[1646821877511,3.64318226,2752.6,2751.8,0.029168]
[1646821877711,3.0,2752.2,2751.8,0.029168]
[1646821878112,4.0,2752.2,2751.8,0.029168]
[1646821882965,4.0,2752.2,2751.8,0.02111499]
[1646821883263,4.0,2752.2,2751.7,0.029168]
[1646821883662,4.0,2752.2,2751.5,0.91543409]
[1646821884511,4.01920358,2752.2,2751.5,0.91543409]
[1646821887963,1.01920358,2752.2,2751.5,0.91543409]
[1646821888168,3.0,2752.1,2751.5,0.91543409]
[1646821888563,4.0,2752.1,2751.5,0.91543409]
[1646821889464,3.9,2752.1,2751.5,0.91543409]
[1646821889863,1.08456591,2751.5,2751.4,1.178]
[1646821890065,5.1474,2752.1,2751.8,1.16355524]
[1646821890264,3.9,2752.1,2751.8,1.16355524]
[1646821891367,3.9,2752.1,2751.8,1.06355524]
[1646821892018,0.31920358,2752.2,2751.9,1.49790113]
[1646821895359,0.61920358,2752.2,2751.7,0.51322441]
[1646821895563,2.8992,2752.1,2751.8,1.49804496]
[1646821895768,3.8992,2752.1,2751.8,1.49804496]
[1646821896063,3.8992,2752.1,2751.8,1.44804496]
[1646821896263,3.8992,2752.1,2751.9,1.01407983]
[1646821896466,2.8992,2752.1,2751.9,1.01407983]
[1646821896763,0.31920358,2752.2,2751.9,1.01407983]
[1646821899310,0.01920358,2752.2,2752.0,3.5]
[1646821900419,0.01920358,2752.2,2751.9,1.01407983]
[1646821900614,0.01920358,2752.2,2751.7,0.51322441]
[1646821902214,0.01920358,2752.2,2751.7,1.50251025]
[1646821902514,0.01920358,2752.2,2751.7,0.51322441]
[1646821903369,0.01920358,2752.2,2751.8,1.04639008]
[1646821903762,0.01730746,2752.2,2751.8,1.04639008]
[1646821905165,0.01730746,2752.2,2751.7,0.51322441]
[1646821905364,1.83626964,2752.4,2751.7,0.51322441]
[1646821905567,0.3,2752.3,2751.7,0.51322441]
[1646821911369,1.31815964,2752.4,2751.7,0.51322441]
[1646821911568,2.8992,2752.3,2751.7,0.51322441]
[1646821911768,3.8992,2752.3,2751.7,0.51322441]
[1646821913267,1.0,2752.3,2751.7,0.51322441]
[1646821913671,0.31815964,2752.4,2751.7,0.51322441]
[1646821913672,2.8992,2752.2,2751.7,0.51322441]
[1646821913868,4.1992,2752.2,2751.7,0.51322441]
[1646821915519,5.10828,2752.2,2751.7,0.51322441]
[1646821915722,0.029168,2752.0,2751.7,0.51322441]
[1646821915919,0.329168,2752.0,2751.7,0.51322441]
[1646821916119,0.329168,2752.0,2751.8,1.49809596]
[1646821916719,2.8992,2751.9,2751.8,1.49809596]
[1646821917120,3.8992,2751.9,2751.8,1.49809596]
[1646821917722,3.8992,2751.9,2751.7,0.51322441]
[1646821918391,3.8992,2751.9,2751.8,1.4980889]
[1646821918588,1.0,2751.9,2751.8,1.4980889]
[1646821918790,2.8992,2751.9,2751.8,1.4980889]
[1646821919188,3.8992,2751.9,2751.8,1.4980889]
[1646821919890,0.5420452,2752.0,2751.8,1.4980889]
[1646821921716,0.8420452,2752.0,2751.8,1.4980889]
[1646821922319,0.3,2752.0,2751.8,1.4980889]
[1646821922621,4.1992,2752.2,2751.8,1.4980889]
[1646821923420,4.1992,2752.2,2752.0,0.92850725]
[1646821923623,4.1992,2752.2,2752.1,1.4980889]
[1646821924026,3.1992,2752.2,2752.1,1.4980889]
[1646821924425,2.8992,2752.2,2752.1,4.9980889]
[1646821924625,0.01720239,2752.3,2752.1,4.9980889]
[1646821924922,0.01720239,2752.3,2752.2,4.9980889]
[1646821926178,2.84777983,2752.4,2752.3,0.02284163]
[1646821926476,2.84777983,2752.4,2752.3,5.02093053]
[1646821926678,2.84777983,2752.4,2752.3,1.52093053]
[1646821932022,2.84777983,2752.4,2752.3,1.52065409]
[1646821934971,2.86561332,2752.4,2752.3,1.51757609]
[1646821935371,0.01783349,2752.4,2752.3,1.51757609]
[1646821937318,0.01783349,2752.4,2752.3,16.45007609]
[1646821937519,0.01783349,2752.4,2752.3,5.38007609]
[1646821937717,0.01783349,2752.4,2752.3,16.45007609]
[1646821938017,0.01783349,2752.4,2752.3,5.01757609]
[1646821938217,0.01783349,2752.4,2752.3,1.51757609]
[1646821939819,0.01783349,2752.4,2752.3,5.01757609]
[1646821943475,0.01783349,2752.4,2752.3,1.51757609]
[1646821944118,0.01783349,2752.4,2752.3,12.58757609]
[1646821944319,0.01783349,2752.4,2752.3,5.01757609]
[1646821944517,0.03059849,2752.7,2752.3,5.01757609]
[1646821944722,0.03059849,2752.7,2752.4,1.49781246]
[1646821944918,0.03059849,2752.7,2752.6,1.19204618]
[1646821945119,0.00143049,2752.7,2752.6,2.68985864]
[1646821945726,0.00143049,2752.7,2752.6,1.49781246]
[1646821945926,0.00143049,2752.7,2752.4,1.49781246]
[1646821946125,0.00143049,2752.7,2752.5,3.5]
[1646821946326,0.00143049,2752.7,2752.6,1.49781246]
[1646821947728,0.00143049,2752.7,2752.5,1.49781246]
[1646821950780,0.03059849,2752.7,2752.3,0.01976363]
[1646821950980,0.03059849,2752.7,2752.4,1.49785251]
[1646821951379,1.12382587,2752.7,2752.4,1.49785251]
[1646821951818,1.42382587,2752.7,2752.4,1.49785251]
[1646821952019,0.90892,2752.6,2752.4,1.49785251]
[1646821952219,1.20892,2752.6,2752.4,1.49785251]
[1646821956378,1.50892,2752.6,2752.4,1.49785251]
[1646821957782,3.4992,2752.6,2752.4,1.49785251]
[1646821958179,4.1992,2752.6,2752.4,1.49785251]
[1646821960028,2.8992,2752.6,2752.4,1.49785251]
[1646821960330,0.03059849,2752.7,2752.4,1.49785251]
[1646821963174,0.03059849,2752.7,2752.3,0.01976363]
[1646821963877,2.92979849,2752.7,2752.3,0.01976363]
[1646821964075,1.81772,2752.6,2752.3,0.01976363]
[1646821964276,2.11772,2752.6,2752.3,0.01976363]
[1646821964676,5.01692,2752.6,2752.3,0.01976363]
[1646821965279,6.03383176,2752.6,2752.3,0.01976363]
[1646821965681,5.03383176,2752.6,2752.3,0.01976363]
[1646821965883,6.03383176,2752.6,2752.3,0.01976363]
[1646821966083,0.98801209,2752.4,2752.3,0.01976363]
[1646821966283,4.78801209,2752.4,2752.3,0.01976363]
[1646821967227,1.28801209,2752.4,2752.3,0.01976363]
[1646821968328,0.3,2752.4,2752.3,0.01976363]
[1646821969232,1.20885,2752.5,2752.3,0.01976363]
[1646821969434,0.92601353,2752.5,2752.3,0.01976363]
[1646821969635,0.3,2752.4,2752.3,0.01976363]
[1646821974423,0.31720306,2752.4,2752.3,0.01976363]
[1646821975025,3.24557106,2752.4,2752.3,0.01976363]
[1646821975326,4.24557106,2752.4,2752.3,0.01976363]
[1646821976231,7.74557106,2752.4,2752.3,0.01976363]
[1646821977632,8.30249513,2752.4,2752.3,0.01976363]
[1646821979875,4.80249513,2752.4,2752.3,0.01976363]
[1646821980478,8.30249513,2752.4,2752.3,0.01976363]
[1646821982428,4.80249513,2752.4,2752.3,0.01976363]
[1646821982830,4.77332713,2752.4,2752.3,0.01976363]
[1646821983730,4.21640306,2752.4,2752.3,0.01976363]
[1646821985129,4.20860875,2752.4,2752.3,0.01976363]
[1646821989428,4.23777675,2752.4,2752.3,0.01976363]
[1646821991133,8.28336505,2752.4,2752.3,0.01976363]
[1646821991534,0.9092,2752.2,2751.6,0.1816]
[1646821991733,0.938378,2752.0,2751.7,1.49803812]
[1646821991933,0.90921,2752.0,2751.7,1.49803812]
[1646821992134,2.928368,2751.9,2751.7,1.49803812]
[1646821992342,1.05435282,2751.8,2751.7,1.49803812]
[1646821992538,4.58352082,2751.8,2751.6,0.1816]
[1646821992735,3.1992,2751.7,2751.6,0.1816]
[1646821993189,4.1992,2751.7,2751.6,0.1816]
[1646821993395,3.1992,2751.7,2751.6,0.1816]
[1646821993588,4.1992,2751.7,2751.6,0.1816]
[1646821993790,4.1992,2751.7,2751.6,1.67968169]
[1646821994491,5.40937,2751.6,2750.7,0.3636]
[1646821994693,0.029168,2751.3,2751.1,0.01518046]
[1646821995497,0.89022641,2751.2,2751.1,0.01518046]
[1646821995698,2.09966641,2751.2,2750.7,0.3636]
[1646821995997,2.09966641,2751.2,2750.4,0.03342108]
[1646821996196,3.5,2751.1,2750.4,0.03342108]
[1646821996397,2.09966641,2751.2,2750.4,0.03342108]
[1646821996635,1.0,2751.1,2750.4,0.03342108]
[1646821996829,6.90838641,2751.2,2750.4,0.03342108]
[1646821997431,0.029168,2751.0,2750.4,0.03342108]
[1646821997632,0.029168,2750.9,2750.4,0.03342108]
[1646821998032,0.84170187,2750.9,2750.4,0.03342108]
[1646821998233,0.84170187,2750.9,2750.5,0.00418691]
[1646821999236,0.84170187,2750.9,2750.4,0.03342108]
[1646821999430,0.84170187,2750.9,2750.6,0.00418684]
[1646821999632,0.84170187,2750.9,2750.8,1.032596]
[1646822002383,0.01673575,2751.1,2750.8,1.032596]
[1646822003182,0.01673575,2751.1,2750.8,1.03665694]
[1646822003984,0.01673575,2751.1,2750.8,1.032596]
[1646822004228,0.01673575,2751.1,2750.8,1.03665694]
[1646822005228,0.01673575,2751.1,2750.8,1.032596]
[1646822005429,0.01673575,2751.1,2750.8,1.03665694]
[1646822005630,0.01673575,2751.1,2750.8,0.00406094]
[1646822005831,3.51673575,2751.1,2750.8,0.00406094]
[1646822006031,0.029168,2750.9,2750.8,0.00406094]
[1646822006430,0.029168,2750.9,2750.4,0.03342108]
[1646822006630,0.90949,2750.9,2750.7,0.00392423]
[1646822006830,0.029168,2750.8,2750.7,0.00392423]
[1646822007231,1.20949,2750.9,2750.7,0.00392423]
[1646822007431,1.238658,2750.9,2750.7,0.00392423]
[1646822007631,1.238658,2750.9,2750.4,1.21902358]
[1646822007886,1.20949,2750.9,2750.7,0.00392429]
[1646822008084,1.238658,2750.9,2750.7,0.00392429]
[1646822008885,1.238658,2750.9,2750.4,1.21902358]
[1646822009088,1.238658,2750.9,2750.7,0.00392429]
[1646822009089,0.029168,2750.9,2750.7,0.00392429]
[1646822009288,0.01673575,2751.1,2750.7,0.00392429]
[1646822009488,1.2267,2751.4,2750.7,0.00392429]
[1646822009489,0.01673533,2750.9,2750.7,0.00392429]
[1646822010088,0.01673533,2750.9,2750.5,1.03459776]
[1646822010288,0.01673533,2750.9,2750.7,0.00391786]
[1646822010492,0.01673533,2750.9,2750.8,0.8075]
[1646822010690,0.01673533,2750.9,2750.8,11.8775]
[1646822012335,0.01673533,2750.9,2750.8,15.30951821]
[1646822012532,0.01673533,2750.9,2750.8,11.8775]
[1646822013131,0.01673533,2750.9,2750.8,15.31112665]
[1646822013331,0.01673533,2750.9,2750.8,11.8775]
[1646822014536,0.01673533,2750.9,2750.8,13.37546897]
[1646822015980,0.01673533,2750.9,2750.8,14.04756673]
[1646822018183,3.80822,2752.0,2751.5,0.06061973]
[1646822018383,3.80822,2752.0,2751.6,1.49796897]
[1646822018583,1.20902,2752.0,2751.6,1.49796897]
[1646822020836,1.20902,2752.0,2751.6,1.49635858]
[1646822021640,1.20902,2752.0,2751.3,1.09918634]
[1646822022040,1.20902,2752.0,2750.9,1.1353]
[1646822022241,1.20902,2752.0,2750.9,1.5803]
[1646822022892,0.3,2751.9,2750.9,1.5803]
[1646822023083,0.3,2751.9,2750.9,2.65919205]
[1646822023084,1.8210747,2751.7,2750.9,2.65919205]
[1646822023483,0.00081025,2751.6,2750.9,2.65919205]
[1646822023779,1.81912025,2751.6,2750.9,2.65919205]
[1646822024383,1.81831,2751.6,2750.9,2.65919205]
[1646822024783,1.82101065,2751.6,2751.1,0.00418624]
[1646822025287,6.23781226,2751.6,2751.1,0.00418624]
[1646822025485,9.43701226,2751.6,2751.1,0.00418624]
[1646822025684,10.43431161,2751.6,2750.7,1.8071]
[1646822025885,0.90936,2751.2,2750.5,2.7982]
[1646822026085,0.90936,2751.2,2751.1,0.00418627]
[1646822026285,1.20936,2751.2,2751.1,0.00418627]
[1646822026931,1.20936,2751.2,2750.5,1.07282823]
[1646822027131,1.20936,2751.2,2751.0,0.00418629]
[1646822028130,1.20936,2751.2,2750.5,1.07282823]
[1646822028331,1.20936,2751.2,2751.0,0.00418635]
[1646822029333,1.20936,2751.2,2750.5,1.07282823]
[1646822029534,1.20936,2751.2,2751.0,0.00406076]
[1646822030486,1.20936,2751.2,2750.5,1.07282823]
[1646822030683,1.20936,2751.2,2751.0,0.00400134]
[1646822031683,1.20936,2751.2,2750.4,1.17447008]
[1646822031885,1.20936,2751.2,2751.0,0.00400134]
[1646822032686,7.2114041,2751.6,2751.0,0.00400134]
[1646822032884,7.20890161,2751.6,2750.8,1.02113852]
[1646822033087,7.2114041,2751.6,2751.0,0.00385173]
[1646822033685,6.29460249,2751.6,2751.0,0.00385173]
[1646822034130,6.2921,2751.6,2750.8,1.02113852]
[1646822034330,5.3857007,2751.6,2751.1,0.00391106]
[1646822034730,4.3857007,2751.6,2751.1,0.00391106]
[1646822035331,4.383,2751.6,2750.9,3.5]
[1646822035535,3.20190075,2751.6,2751.1,0.00391107]
[1646822036434,2.8992,2751.6,2751.3,1.13431988]
[1646822036734,2.8992,2751.6,2751.4,3.5]
[1646822036735,0.00270075,2751.6,2751.4,3.5]
[1646822036934,0.00270075,2751.6,2751.3,1.13431988]
[1646822037890,0.00270084,2751.6,2751.3,1.13431988]
[1646822038880,3.92023454,2751.9,2751.3,1.13431988]
[1646822039085,0.00270084,2751.6,2751.3,1.13431988]
[1646822040083,3.8992,2751.9,2751.3,1.13431988]
[1646822040283,0.00270084,2751.6,2751.3,1.13431988]
[1646822041289,0.90903,2751.7,2751.1,3.5]
[1646822041490,0.00270084,2751.6,2751.1,0.00391835]
[1646822041733,0.00270084,2751.6,2751.1,5.00201752]
[1646822041931,0.00270084,2751.6,2751.2,1.49809917]
[1646822042335,0.00270084,2751.6,2751.3,1.49809917]
[1646822042634,0.90903,2751.7,2751.4,1.47939813]
[1646822042835,0.0027008,2751.6,2751.1,1.15313963]
[1646822043833,0.90903,2751.7,2751.1,1.1492213]
[1646822044033,0.00270075,2751.6,2751.1,1.15313962]
[1646822044634,0.00270075,2751.6,2751.1,4.65313962]
[1646822044834,0.90903,2751.7,2751.1,1.1492213]
[1646822045234,0.00270075,2751.6,2751.1,1.15313962]
[1646822046087,0.90903,2751.7,2751.1,1.15313962]
[1646822046088,0.90903,2751.7,2751.1,1.1492213]
[1646822046384,0.00270075,2751.6,2751.1,1.15313962]
[1646822047284,0.90903,2751.7,2751.1,1.1492213]
[1646822047487,0.00270075,2751.6,2751.1,1.15313962]
[1646822048488,0.90903,2751.7,2751.1,1.1492213]
[1646822048690,0.00270075,2751.6,2751.1,1.15313962]
[1646822049733,0.0190933,2751.5,2751.1,1.1492213]
[1646822050032,0.90912,2751.4,2751.1,1.15313962]
[1646822050837,0.0190933,2751.5,2751.1,1.1492213]
[1646822051039,1.45494095,2752.4,2751.4,12.68003936]
[1646822051241,0.00270065,2751.6,2751.5,15.015]
[1646822051440,0.00270065,2751.6,2751.5,18.406668]
[1646822051441,6.5e-07,2751.6,2751.5,18.406668]
[1646822051837,6.5e-07,2751.6,2751.5,21.28004828]
[1646822052040,9.48069726,2753.0,2751.9,11.4325]
[1646822052041,0.1817,2752.9,2751.9,11.4325]
[1646822052240,7.035415,2753.0,2752.2,0.028336]
[1646822052440,7.035415,2753.0,2752.3,0.445]
[1646822052641,7.035415,2753.0,2752.4,1.20784186]
[1646822053087,7.035415,2753.0,2752.3,0.445]
[1646822053684,7.035415,2753.0,2752.2,0.028336]
[1646822054282,7.035415,2753.0,2752.3,1.14481086]
[1646822054782,7.943995,2753.0,2752.3,1.14481086]
[1646822054985,7.035415,2753.0,2752.4,3.5]
[1646822055589,7.035415,2753.0,2752.3,1.14481086]
[1646822055988,0.00269411,2752.8,2752.3,1.14481086]
[1646822056828,7.035415,2753.0,2752.3,1.14481086]
[1646822057027,0.00269411,2752.7,2752.3,1.14481086]
[1646822057228,0.00269411,2752.7,2752.2,0.028336]
[1646822058131,7.035415,2753.0,2752.2,0.028336]
[1646822058329,0.00269411,2752.6,2752.4,0.98505705]
[1646822059333,7.035415,2753.0,2752.4,0.98505705]
[1646822059533,0.00269411,2752.6,2752.4,0.98505705]
[1646822059734,0.00269411,2752.6,2752.5,0.02811]
[1646822060485,7.035415,2753.0,2752.5,0.02811]
[1646822060884,0.00269411,2752.7,2752.5,0.02811]
[1646822061686,7.035415,2753.0,2752.5,0.02811]
[1646822061887,0.00269411,2752.7,2752.5,0.02811]
[1646822062887,7.035415,2753.0,2752.5,0.02811]
[1646822063088,0.00269411,2752.7,2752.2,0.473336]
[1646822063389,0.00269411,2752.7,2752.1,1.197]
[1646822064136,4.6816,2752.9,2752.1,1.197]
[1646822064335,0.00269411,2752.5,2752.1,1.197]
[1646822064733,0.00269411,2752.5,2751.9,1.03204566]
[1646822065233,2.1177,2752.6,2751.9,1.03204566]
[1646822065438,1.81758,2752.5,2751.9,1.03204566]
[1646822065636,0.00269411,2752.3,2751.9,1.03204566]
[1646822066237,0.00269411,2752.3,2751.8,0.028001]
[1646822066437,2.11758,2752.5,2751.8,0.028001]
[1646822066840,0.00269411,2752.2,2751.8,0.028001]
[1646822067641,1.81766,2752.2,2751.8,0.028001]
[1646822067888,0.00269411,2752.1,2751.8,0.028001]
[1646822068279,0.00269411,2752.1,2751.5,1.205468]
[1646822068478,0.00269411,2752.1,2751.6,1.49810443]
[1646822068879,1.81766,2752.2,2751.6,1.49810443]
[1646822069081,1.81786,2752.1,2751.6,1.49810443]
[1646822069286,0.00269411,2752.0,2751.6,1.49810443]
[1646822070085,1.23105854,2751.8,2751.6,1.49810443]
[1646822070286,2.14009854,2751.8,2751.6,1.49810443]
[1646822070485,2.14009854,2751.8,2751.5,0.029168]
[1646822071289,2.14009854,2751.8,2751.4,1.59796797]
[1646822071487,2.14009854,2751.8,2751.5,1.49812172]
[1646822071745,2.14279265,2751.8,2751.4,1.59796797]
[1646822072545,2.14009854,2751.8,2751.5,1.49815184]
[1646822072746,0.00269411,2751.7,2751.5,1.49815184]
[1646822072946,0.00269411,2751.7,2751.4,1.59796797]
[1646822073147,1.82091411,2751.7,2751.4,1.59796797]
[1646822073851,1.81822,2751.7,2751.4,1.59796797]
[1646822074246,1.82091407,2751.7,2751.4,1.59796797]
[1646822074448,3.5,2751.6,2751.4,1.59796797]
[1646822074847,6.2377,2751.6,2751.4,1.59796797]
[1646822075046,3.5,2751.5,2751.4,1.59796797]
[1646822075247,3.6817,2751.5,2751.4,1.59796797]
[1646822075488,4.6817,2751.5,2751.4,1.59796797]
[1646822075689,4.6817,2751.5,2751.4,1.59656899]
[1646822076889,1.1817,2751.5,2751.4,1.59656899]
[1646822077093,1.0,2751.5,2751.4,1.59656899]
[1646822077392,1.7377,2751.6,2751.4,1.59656899]
[1646822077790,1.556,2751.6,2751.4,1.59656899]
[1646822080638,1.7377,2751.6,2751.4,1.59656899]
[1646822081240,1.556,2751.6,2751.4,1.59656899]
[1646822085091,0.01992468,2751.5,2751.4,1.59656899]
[1646822092894,0.90904,2751.8,2751.5,0.02669913]
[1646822093295,0.00269397,2751.7,2751.5,0.02669913]
[1646822094236,2.46486,2752.1,2751.5,0.02669913]
[1646822094434,0.00269411,2751.7,2751.6,1.5261265]
[1646822095338,0.90886,2752.1,2751.6,1.5261265]
[1646822095541,0.90977052,2751.8,2751.5,0.05470013]
[1646822095740,2.46577052,2751.8,2751.5,0.02669913]
[1646822096540,2.46496,2751.8,2751.5,0.02669913]
[1646822096742,0.90977052,2751.8,2751.5,0.02669913]
[1646822097744,4.40896,2751.8,2751.5,0.02669913]
[1646822098182,5.40977052,2751.8,2751.5,0.02669913]
[1646822098385,2.72776,2751.7,2751.5,0.02669913]
[1646822098582,3.5,2751.6,2751.5,0.02669913]
[1646822098783,3.8,2751.6,2751.5,0.02669913]
[1646822098982,6.356,2751.6,2751.5,0.02669913]
[1646822099483,7.37984112,2751.6,2751.5,0.02669913]
[1646822100487,3.87984112,2751.6,2751.5,0.02669913]
[1646822101289,2.856,2751.6,2751.4,1.54430607]
[1646822102137,1.856,2751.6,2751.4,1.54430607]
[1646822102336,6.356,2751.6,2751.4,1.54430607]
[1646822102639,5.99581056,2751.6,2751.4,1.54430607]
[1646822103436,3.5,2751.5,2751.4,1.54430607]
[1646822103637,4.0,2751.4,2751.2,0.00418846]
[1646822103836,4.0,2751.4,2750.9,0.028001]
[1646822103837,3.5,2751.3,2750.9,0.028001]
[1646822104035,3.5,2751.3,2751.2,0.00405024]
[1646822104036,3.8,2751.3,2751.2,0.00405024]
[1646822104235,4.8,2751.3,2751.2,0.00405024]
[1646822104436,2.856,2751.3,2751.2,0.00405024]
[1646822105141,3.76537,2751.3,2750.7,0.028001]
[1646822105392,3.76537,2751.3,2751.1,0.00405022]
[1646822105393,2.50937,2751.3,2751.1,0.00405022]
[1646822105587,1.556,2751.2,2751.1,0.00405022]
[1646822106286,1.556,2751.2,2750.9,0.028001]
[1646822106287,0.86671354,2751.1,2750.9,0.028001]
[1646822106488,0.86671354,2751.1,2751.0,0.00405034]
[1646822106688,2.556,2751.2,2751.0,0.00405034]
[1646822106887,2.856,2751.2,2751.0,0.00405034]
[1646822107088,1.856,2751.2,2751.0,0.00405034]
[1646822107289,2.556,2751.2,2750.7,0.028001]
[1646822107490,1.556,2751.2,2750.8,1.49838898]
[1646822107694,2.556,2751.2,2751.0,0.00390637]
[1646822107891,1.556,2751.2,2751.0,0.00390637]
[1646822108091,2.556,2751.2,2751.0,0.00390637]
[1646822108292,1.556,2751.2,2751.0,1.53039041]
[1646822108492,1.556,2751.2,2751.1,1.49833603]
[1646822109533,1.57536397,2751.2,2751.1,1.49833603]
[1646822111442,0.01936397,2751.2,2751.1,1.49833603]
[1646822113889,0.00269367,2751.7,2751.2,0.02541151]
[1646822114091,0.00269367,2751.7,2751.3,1.49833603]
[1646822114292,0.90904,2751.4,2751.3,1.49833603]
[1646822115095,0.00081088,2751.7,2751.3,1.49833603]
[1646822115695,1.81803,2751.8,2751.3,2.61353054]
[1646822115894,0.00081088,2751.7,2751.4,1.52653403]
[1646822116094,0.00081088,2751.7,2751.5,1.49833603]
[1646822116095,0.90979088,2751.7,2751.5,1.49833603]
[1646822116936,0.90898,2751.7,2751.5,1.49833603]
[1646822117137,0.90979091,2751.7,2751.5,1.49833603]
[1646822118138,0.90898,2751.7,2751.5,1.49833603]
[1646822118337,0.91167411,2751.7,2751.5,1.49833603]
[1646822119338,0.90898,2751.7,2751.5,1.49833603]
[1646822119539,0.91167411,2751.7,2751.5,1.49833603]
[1646822120497,0.90898,2751.7,2751.6,0.028156]
[1646822120689,0.90898,2751.7,2751.6,1.52649203]
[1646822120890,0.91167411,2751.7,2751.6,1.52649203]
[1646822121792,0.90898,2751.7,2751.6,1.52649203]
[1646822121991,1.83943302,2751.8,2751.6,1.52649203]
[1646822121992,1.84024125,2751.8,2751.6,1.52649203]
[1646822122193,1.84024125,2751.8,2751.7,1.49833603]
[1646822122794,1.83943302,2751.8,2751.7,1.49833603]
[1646822122999,0.02140302,2751.8,2751.7,1.49833603]
[1646822125649,0.90907,2751.7,2751.3,0.028001]
[1646822125844,0.90907,2751.7,2751.4,1.49820086]
[1646822126746,0.90987822,2751.7,2751.4,1.49820086]
[1646822128901,0.90907,2751.7,2751.4,1.49820086]
[1646822129300,0.90987822,2751.7,2751.4,1.49820086]
[1646822129502,0.90987822,2751.7,2751.6,0.028378]
[1646822129700,0.90987822,2751.7,2751.6,1.52657886]
[1646822130102,0.90907,2751.7,2751.6,1.49820086]
[1646822131838,0.90907,2751.7,2751.3,0.028001]
[1646822132035,0.90907,2751.7,2751.4,1.49826749]
[1646822132240,0.90907,2751.7,2751.5,1.49826749]
[1646822132440,0.90907,2751.7,2751.2,0.05731804]
[1646822132441,1.22326278,2751.6,2751.2,0.05731804]
[1646822132640,3.04162278,2751.6,2751.3,1.49828323]
[1646822133040,4.04162278,2751.6,2751.3,1.49828323]
[1646822133645,8.45091278,2751.6,2751.3,1.49828323]
[1646822133845,8.45091278,2751.6,2751.2,0.02541151]
[1646822134044,8.45091278,2751.6,2751.2,0.02931699]
[1646822134045,10.00691278,2751.6,2751.2,0.02931699]
[1646822135044,6.50691278,2751.6,2751.2,0.02541151]
[1646822135394,10.00691278,2751.6,2751.2,0.02541151]
[1646822135589,5.59762278,2751.6,2751.2,0.02541151]
[1646822136689,5.59762278,2751.6,2751.2,0.02933668]
[1646822137189,5.59762278,2751.6,2751.2,0.02806777]
[1646822137389,5.59762278,2751.6,2751.2,0.0241426]
[1646822137591,5.59762278,2751.6,2751.2,0.02806777]
[1646822138196,4.37436,2751.6,2751.2,0.02806777]
[1646822138392,4.37436,2751.6,2751.3,1.52650205]
[1646822138595,4.37436,2751.6,2751.3,0.028221]
[1646822139634,2.556,2751.6,2751.3,0.028221]
[1646822139834,1.556,2751.6,2751.3,0.028221]
[1646822140034,2.556,2751.6,2751.3,0.028221]
[1646822140240,1.556,2751.6,2751.4,1.49827515]
[1646822140439,2.556,2751.6,2751.4,1.49827515]
[1646822141346,2.556,2751.6,2751.4,1.52638115]
[1646822141347,1.0,2751.6,2751.4,1.52638115]
[1646822141543,1.0,2751.6,2751.5,1.52744315]
[1646822141741,0.93098171,2751.7,2751.5,1.52744315]
[1646822141943,0.93098171,2751.7,2751.6,1.49818425]
[1646822142141,0.92828769,2751.7,2751.6,1.49818425]
[1646822142542,0.9309818,2751.7,2751.6,1.49818425]
[1646822143286,0.92828769,2751.7,2751.6,1.49818425]
[1646822144494,0.92828769,2751.7,2751.4,0.028106]
[1646822144693,0.92828769,2751.7,2751.5,1.49824684]
[1646822145896,0.92828769,2751.7,2751.4,1.49824684]
[1646822146097,0.9309818,2751.7,2751.5,1.49828737]
[1646822146298,0.9309818,2751.7,2751.6,1.49825281]
[1646822146503,0.0218218,2751.7,2751.4,0.028001]
[1646822146736,0.0218218,2751.7,2751.5,1.49827999]
[1646822146943,0.01912769,2751.7,2751.5,1.49827999]
[1646822147342,0.02182176,2751.7,2751.5,1.49827999]